bitfinex/quotes_ETHUSD_20260302
["timestamp","ask_amount","ask_price","bid_price","bid_amount"]
[1772463394920,0.00153886,1974.0,1972.9,4.76369347]
[1772463395231,0.00153886,1974.0,1973.1,4.76369347]
[1772463395652,0.00153886,1974.0,1973.2,4.76369347]
[1772463395855,2.12480119,1975.0,1973.2,4.76369347]
[1772463396019,2.12480119,1975.0,1972.9,2.86849188]
[1772463396020,4.74182563,1974.9,1972.9,4.76369347]
[1772463396218,2.0,1974.8,1972.9,4.76369347]
[1772463396547,2.0,1974.8,1973.0,4.76523233]
[1772463396747,4.74182563,1974.9,1973.0,4.76523233]
[1772463396949,3.39067509,1975.0,1973.0,4.76523233]
[1772463397140,8.13250072,1975.0,1973.2,4.76369347]
[1772463397561,4.74182563,1974.0,1972.5,0.001]
[1772463397761,4.74182563,1973.8,1972.5,0.001]
[1772463398556,2.21502099,1973.7,1972.4,5.07072827]
[1772463398736,4.74182563,1973.6,1972.4,0.001]
[1772463398935,4.74182563,1973.4,1972.4,0.001]
[1772463399131,1.26697749,1973.2,1972.4,0.001]
[1772463401247,1.26659235,1973.8,1972.4,4.76469347]
[1772463402457,1.26659235,1973.8,1972.4,0.001]
[1772463402656,1.998,1973.7,1972.4,0.001]
[1772463402874,1.26659235,1973.8,1972.4,0.001]
[1772463403050,1.26659235,1973.8,1972.4,4.76469347]
[1772463403225,5.06636943,1973.9,1972.5,1.26742712]
[1772463403425,1.998,1973.7,1972.4,1.26845855]
[1772463403625,5.06636943,1973.9,1972.5,4.76369347]
[1772463403837,1.26652819,1973.9,1972.5,4.76369347]
[1772463404038,1.26803946,1974.0,1972.5,4.76369347]
[1772463404329,0.00153886,1974.0,1972.9,4.76369347]
[1772463404582,0.00153886,1974.0,1973.1,4.76369347]
[1772463405259,0.00153886,1974.0,1973.2,6.03067096]
[1772463405753,0.00153886,1974.0,1973.1,1.26699883]
[1772463406528,0.00153886,1974.0,1973.2,4.76369347]
[1772463406757,0.00153886,1974.0,1973.1,1.26699883]
[1772463407325,0.00153886,1974.0,1972.8,6.75037512]
[1772463407548,0.00153886,1974.0,1973.2,5.48314074]
[1772463407758,5.06444196,1974.6,1973.2,5.48314074]
[1772463408159,10.43629622,1974.6,1973.1,1.5]
[1772463408534,5.06444196,1974.6,1973.2,5.48314074]
[1772463408970,1.993,1974.8,1973.2,5.48314074]
[1772463409266,5.06358014,1974.9,1973.2,5.48314074]
[1772463409437,5.06358014,1974.9,1973.3,6.75005403]
[1772463409638,3.39062931,1975.0,1973.5,5.48314074]
[1772463409842,0.002,1973.9,1973.5,5.48314074]
[1772463410079,2.12480119,1975.0,1973.5,5.48314074]
[1772463410659,0.002,1974.0,1973.7,5.48314074]
[1772463410834,2.12480119,1975.0,1973.7,5.48314074]
[1772463411027,3.39065776,1975.0,1973.7,5.48314074]
[1772463411233,0.002,1974.2,1973.7,5.48314074]
[1772463411534,0.002,1974.2,1973.7,1.26665653]
[1772463412559,0.002,1974.2,1973.6,1.499]
[1772463412751,0.002,1974.2,1973.5,1.26673325]
[1772463413555,3.39062769,1975.0,1973.4,5.48314074]
[1772463413960,3.39062482,1975.0,1973.4,5.48314074]
[1772463414460,3.39062681,1975.0,1973.4,5.48314074]
[1772463414634,3.39062987,1975.0,1973.4,5.48314074]
[1772463415281,2.12480119,1975.0,1973.6,5.48314074]
[1772463415459,2.12480119,1975.0,1973.8,5.48314074]
[1772463415773,1.26736841,1975.0,1974.0,5.48314074]
[1772463416074,0.00153886,1975.0,1974.0,5.48314074]
[1772463416731,1.26736504,1975.0,1974.0,5.48314074]
[1772463416925,1.26736504,1975.0,1973.9,1.5]
[1772463417169,6.6392193,1975.0,1973.7,1.26665653]
[1772463417466,1.26742574,1975.0,1973.6,5.06662613]
[1772463417655,1.26588688,1974.9,1973.6,10.54976687]
[1772463417856,1.2673799,1975.0,1973.7,5.48314074]
[1772463418477,1.26739398,1975.0,1973.7,5.48314074]
[1772463419041,6.63924824,1975.0,1973.6,5.06662613]
[1772463419439,1.26737782,1975.0,1973.7,5.48314074]
[1772463419937,11.97223208,1975.0,1973.6,5.06662613]
[1772463420362,0.00153886,1975.0,1973.7,5.48314074]
[1772463420562,6.63923614,1975.0,1973.6,5.06662613]
[1772463421072,5.333,1974.9,1973.6,5.06662613]
[1772463421450,5.333,1974.9,1973.5,2.76572071]
[1772463421451,6.63780524,1974.8,1973.5,1.499]
[1772463421655,1.26595098,1974.8,1973.2,5.48314074]
[1772463421951,5.333,1974.7,1973.2,5.48314074]
[1772463422364,10.70485426,1974.7,1973.2,5.48314074]
[1772463423074,5.333,1974.5,1973.2,5.48314074]
[1772463423253,5.37185426,1974.6,1973.2,5.48314074]
[1772463423453,5.06380392,1974.9,1973.4,5.48314074]
[1772463423657,5.37185426,1974.8,1973.4,5.48314074]
[1772463424183,1.982,1975.6,1974.1,5.48314074]
[1772463424352,0.002,1976.2,1974.5,5.48314074]
[1772463424353,6.63895591,1976.2,1974.5,5.48314074]
[1772463424683,6.63891787,1976.2,1974.8,7.53800935]
[1772463424884,1.26712137,1976.1,1974.9,1.498]
[1772463425392,1.26717411,1976.1,1974.9,1.498]
[1772463425686,5.37339312,1976.0,1974.5,2.76414332]
[1772463425864,5.37185426,1975.8,1974.5,2.76414332]
[1772463426065,0.002,1975.0,1974.5,2.76414332]
[1772463426253,0.002,1975.0,1974.2,1.26629928]
[1772463427412,0.002,1975.0,1974.2,6.74944002]
[1772463428677,0.002,1975.0,1974.2,1.26629928]
[1772463430590,5.37185426,1974.9,1974.0,1.49953886]
[1772463430793,2.05486861,1974.6,1973.5,0.001]
[1772463430972,5.37185426,1974.9,1973.6,1.26771528]
[1772463431164,5.37185426,1974.7,1973.6,1.26770301]
[1772463431364,5.37185426,1974.7,1973.6,0.001]
[1772463431564,1.26614332,1974.5,1973.6,0.001]
[1772463432276,1.975,1974.4,1973.6,0.001]
[1772463432668,1.26595098,1974.8,1973.6,0.001]
[1772463432990,6.63780524,1974.8,1973.6,0.001]
[1772463433564,1.26614332,1974.5,1973.6,0.001]
[1772463434506,1.975,1974.5,1973.6,0.001]
[1772463434997,5.74704673,1974.5,1973.6,0.001]
[1772463435297,0.00353886,1975.0,1973.6,5.66914584]
[1772463435477,1.26940564,1975.0,1973.6,5.66914584]
[1772463435803,0.00353886,1975.0,1973.7,1.26665653]
[1772463436105,0.00353886,1975.0,1973.7,6.93480237]
[1772463436265,0.00353886,1975.0,1973.8,5.66814584]
[1772463436464,0.00153886,1975.0,1974.3,5.66814584]
[1772463436664,0.002,1975.2,1974.5,5.66814584]
[1772463437473,0.002,1975.2,1974.7,5.59877876]
[1772463437697,0.00153886,1976.0,1974.8,6.86472974]
[1772463437901,0.00153886,1976.0,1974.9,1.495]
[1772463438099,0.00153886,1976.0,1975.0,5.59877876]
[1772463438302,0.00153886,1976.0,1975.2,2.05486861]
[1772463438612,0.00153886,1976.0,1975.3,5.59877876]
[1772463438899,0.002,1976.2,1975.3,5.59877876]
[1772463439802,0.002,1975.9,1975.4,6.86434522]
[1772463439963,0.002,1976.2,1975.5,1.495]
[1772463440171,0.002,1976.2,1975.6,5.59877876]
[1772463440597,0.002,1976.0,1975.6,5.59877876]
[1772463440898,0.002,1976.2,1975.6,5.59877876]
[1772463441601,0.00153886,1977.0,1975.7,5.59877876]
[1772463441788,0.00153886,1977.0,1975.9,5.59877876]
[1772463441966,0.00153886,1977.0,1975.8,1.26531025]
[1772463442363,0.00153886,1977.0,1975.8,6.86408901]
[1772463444286,0.00153886,1977.0,1976.2,5.59877876]
[1772463444487,0.00153886,1977.0,1976.1,2.05486861]
[1772463444488,0.00153886,1977.0,1976.4,5.59877876]
[1772463444888,0.00153886,1977.0,1976.3,4.11308425]
[1772463445095,0.00153886,1977.0,1976.3,1.497]
[1772463445298,0.00153886,1977.0,1975.8,1.26531025]
[1772463446102,0.00153886,1977.0,1975.7,5.06124101]
[1772463446487,5.40482205,1977.0,1975.7,5.06124101]
[1772463447196,0.00153886,1977.0,1975.7,10.66001977]
[1772463447401,0.00153886,1977.0,1975.8,5.59877876]
[1772463447915,0.00153886,1977.0,1975.9,1.26524621]
[1772463448083,0.00153886,1977.0,1976.0,1.498]
[1772463450088,0.00153886,1977.0,1976.1,1.26511816]
[1772463450817,0.00153886,1977.0,1976.2,1.5]
[1772463450992,0.00153886,1977.0,1976.1,1.26511816]
[1772463452120,0.00153886,1977.0,1976.2,5.59877876]
[1772463452290,0.00153886,1977.0,1976.3,1.499]
[1772463453313,0.002,1976.9,1976.3,1.499]
[1772463453615,0.002,1976.9,1976.0,6.55947264]
[1772463453816,0.002,1976.9,1976.0,5.06047264]
[1772463454014,0.002,1976.9,1975.8,5.06072874]
[1772463454317,0.002,1976.9,1975.7,5.06085178]
[1772463454507,0.002,1976.9,1975.8,5.59877876]
[1772463456210,0.002,1976.9,1975.9,1.26524621]
[1772463456417,0.002,1976.9,1976.0,1.5]
[1772463457634,5.40528319,1976.9,1975.9,1.26524621]
[1772463458128,1e-08,1977.0,1976.1,5.59877876]
[1772463458309,1e-08,1977.0,1976.2,6.8638329]
[1772463459060,1e-08,1977.0,1976.2,8.3638329]
[1772463459834,1e-08,1977.0,1976.2,1.26505414]
[1772463460331,1.2646062,1976.9,1976.0,1.26672104]
[1772463460522,11.99788939,1976.9,1976.0,1.26672104]
[1772463460701,5.40328319,1976.9,1976.0,1.26672104]
[1772463462015,5.40328319,1976.7,1976.0,0.00153886]
[1772463462329,6.59479813,1976.6,1976.0,0.00153886]
[1772463462502,6.66806997,1976.7,1976.0,0.00153886]
[1772463462700,6.59465995,1976.9,1976.0,0.00153886]
[1772463462906,1.26465995,1976.9,1976.0,0.00153886]
[1772463464524,11.99794314,1976.9,1976.0,0.00153886]
[1772463465426,10.73328319,1976.9,1976.0,0.00153886]
[1772463465838,50.00000001,1977.0,1976.0,0.00153886]
[1772463466040,50.00000001,1977.0,1976.1,7.09577876]
[1772463466249,2.46299969,1977.0,1976.1,7.09577876]
[1772463466417,2.46299969,1977.0,1976.2,1.26505414]
[1772463466737,2.35954981,1977.0,1976.2,6.8638329]
[1772463467104,0.002,1977.2,1976.2,6.8638329]
[1772463467644,9.26172551,1977.2,1976.2,1.26505414]
[1772463467850,1.26642799,1977.2,1976.1,1.2650667]
[1772463468158,0.002,1976.9,1976.1,1.2650667]
[1772463468335,1.2666062,1976.9,1976.0,0.00153886]
[1772463468712,0.002,1976.9,1976.0,0.00153886]
[1772463469535,0.002,1976.9,1976.0,5.87606995]
[1772463470316,0.002,1976.9,1976.1,1.26511816]
[1772463470740,0.002,1976.9,1976.1,7.13964925]
[1772463470936,0.002,1976.9,1976.2,1.496]
[1772463471258,6.00349156,1977.6,1976.2,1.496]
[1772463471259,7.26893555,1978.0,1976.5,5.87453109]
[1772463471456,0.00153886,1978.0,1976.5,5.87453109]
[1772463471609,0.00153886,1978.0,1976.9,5.87453109]
[1772463471919,0.00153886,1978.0,1977.0,7.37053109]
[1772463472309,0.00153886,1978.0,1977.1,1.26447827]
[1772463472946,0.00153886,1978.0,1977.1,7.13900936]
[1772463476537,0.00153886,1978.0,1977.1,1.26447827]
[1772463476740,0.00153886,1978.0,1977.1,1.26446998]
[1772463476944,0.00153886,1978.0,1977.3,5.87453109]
[1772463477731,0.00153886,1978.0,1977.2,1.496]
[1772463478746,0.00153886,1978.0,1977.3,1.26435037]
[1772463479865,0.00153886,1978.0,1977.0,1.26454223]
[1772463479866,6.00503042,1978.0,1977.0,1.26454223]
[1772463480578,6.00503042,1978.0,1976.5,10.93348862]
[1772463480722,7.26758621,1977.7,1976.6,1.26479813]
[1772463481552,6.00349156,1977.7,1976.6,1.26479813]
[1772463481768,2.54261349,1977.9,1976.6,7.13932922]
[1772463482169,8.54610505,1977.9,1976.6,7.13932922]
[1772463482470,6.00349156,1977.8,1976.6,7.13932922]
[1772463482858,7.26758621,1977.7,1976.6,2.76279813]
[1772463483155,7.26758621,1977.7,1976.2,10.93432059]
[1772463483156,0.002,1977.6,1976.3,2.76299013]
[1772463483358,6.00349156,1977.5,1976.3,2.76299013]
[1772463483532,1.932,1977.4,1976.3,2.76299013]
[1772463483739,6.00349156,1977.3,1976.3,2.76299013]
[1772463484576,6.00349156,1977.3,1976.1,0.001]
[1772463484724,6.00349156,1977.1,1976.1,0.001]
[1772463484925,6.00349156,1976.9,1976.1,0.001]
[1772463485347,6.00349156,1976.9,1976.0,0.00253886]
[1772463485863,6.00349156,1976.7,1975.9,0.001]
[1772463486449,11.33349156,1977.1,1975.9,0.001]
[1772463486758,1.931,1976.9,1975.9,0.001]
[1772463486971,1.26467017,1976.8,1975.9,0.001]
[1772463487132,7.26816173,1976.8,1975.9,0.001]
[1772463487574,6.00349156,1976.6,1975.9,0.001]
[1772463487942,6.00349156,1976.5,1975.9,0.001]
[1772463488338,12.59816173,1976.8,1975.9,0.001]
[1772463488537,6.00349156,1976.7,1975.9,0.001]
[1772463489065,5.05868069,1976.9,1975.9,0.001]
[1772463489066,3.1956062,1976.9,1975.9,0.001]
[1772463489240,1.26612587,1977.0,1975.9,5.87553109]
[1772463489742,6.00349156,1976.9,1975.9,0.001]
[1772463490138,1.932,1976.8,1975.9,0.001]
[1772463490735,7.93549156,1976.8,1975.9,0.001]
[1772463490940,15.38886996,1976.6,1975.9,0.001]
[1772463491165,1.26479813,1976.6,1975.6,0.001]
[1772463491353,5.05887146,1976.8,1975.6,0.001]
[1772463491559,1.932,1976.7,1975.6,0.001]
[1772463491760,1.932,1976.6,1975.6,5.87553109]
[1772463492068,5.05887146,1976.8,1975.6,7.37153109]
[1772463492368,1.932,1976.8,1975.7,8.66511136]
[1772463492546,1.932,1976.8,1975.7,5.87453109]
[1772463492865,7.26811566,1976.9,1975.7,5.87453109]
[1772463493074,9.20011566,1976.9,1975.8,1.26531025]
[1772463493536,7.26811566,1976.9,1975.8,7.13984134]
[1772463493740,6.00349156,1976.9,1975.8,7.13984134]
[1772463493940,1.933,1976.8,1975.8,7.13984134]
[1772463494542,1.933,1976.8,1975.9,1.497]
[1772463495146,1.93353886,1977.0,1976.0,1.26518218]
[1772463495347,1.26609669,1977.0,1976.0,6.96629283]
[1772463495773,1.26608117,1977.0,1976.0,6.96629283]
[1772463496343,1.933,1976.9,1976.0,6.96629283]
[1772463497881,1.26608117,1977.0,1976.0,6.96629283]
[1772463498097,3.19808117,1977.0,1976.1,0.001]
[1772463498299,0.002,1977.6,1976.4,5.71922332]
[1772463498585,0.002,1977.1,1976.6,5.71922332]
[1772463498878,0.002,1977.6,1976.7,5.71922332]
[1772463499175,0.002,1977.2,1976.9,8.50980359]
[1772463499380,0.002,1977.6,1977.1,5.71922332]
[1772463499682,0.002,1977.6,1977.0,1.499]
[1772463499683,0.002,1977.9,1977.4,5.71922332]
[1772463499893,1.26539195,1978.8,1977.6,1.26415857]
[1772463500294,0.002,1978.8,1977.7,5.71922332]
[1772463500478,0.002,1978.8,1978.0,5.71922332]
[1772463501085,0.002,1978.8,1977.8,1.5]
[1772463501393,2.79258027,1978.7,1977.6,1.26415857]
[1772463501564,0.002,1978.7,1977.6,6.98338189]
[1772463501761,0.002,1978.7,1977.7,1.5]
[1772463501966,1.26351966,1978.6,1977.8,1.26403074]
[1772463502964,0.002,1978.7,1977.8,1.26403074]
[1772463503376,0.002,1978.7,1977.9,1.499]
[1772463503997,0.002,1978.7,1978.0,1.26390293]
[1772463504563,0.002,1978.7,1978.1,5.71922332]
[1772463504768,0.002,1978.7,1978.0,1.26390293]
[1772463505396,0.002,1978.7,1978.0,6.98312625]
[1772463508174,0.002,1978.7,1978.0,1.26390293]
[1772463508368,0.002,1978.7,1977.9,1.499]
[1772463508591,6.0311741,1978.4,1977.5,1.2642225]
[1772463508896,1.92,1978.5,1977.5,1.2642225]
[1772463509097,1.92,1978.5,1977.5,2.7662225]
[1772463509279,7.9511741,1978.5,1977.5,2.7662225]
[1772463510080,1.26364739,1978.4,1977.5,2.7662225]
[1772463510283,1.26549979,1978.7,1977.5,11.27602609]
[1772463510480,0.002,1978.7,1977.6,5.71922332]
[1772463510685,12.0,1978.6,1977.6,5.71922332]
[1772463512401,12.0,1978.6,1977.9,5.71922332]
[1772463512700,12.002,1978.6,1978.0,7.22322332]
[1772463513100,0.002,1978.7,1978.0,7.22322332]
[1772463513677,0.002,1978.7,1978.1,5.71922332]
[1772463514283,0.002,1978.7,1978.2,1.26377514]
[1772463514488,0.002,1978.7,1978.3,1.504]
[1772463514703,0.002,1978.9,1978.4,5.71922332]
[1772463515210,0.002,1978.9,1978.2,1.26377514]
[1772463515509,0.002,1978.9,1978.2,2.76977514]
[1772463515900,0.002,1978.9,1978.2,8.48899846]
[1772463516084,0.002,1978.9,1978.3,5.71922332]
[1772463516404,0.002,1978.9,1978.4,6.98287071]
[1772463516616,0.002,1978.9,1978.5,1.506]
[1772463517908,0.002,1978.9,1978.2,1.507]
[1772463518083,0.002,1978.9,1978.2,1.26374441]
[1772463518504,6.59532811,1978.9,1977.9,1.26396683]
[1772463518880,0.002,1978.9,1978.1,5.71922332]
[1772463520404,5.05161355,1979.6,1978.3,5.71922332]
[1772463520601,6.0311741,1979.5,1978.3,5.71922332]
[1772463521315,11.3611741,1979.5,1978.3,5.71922332]
[1772463521511,6.0311741,1979.5,1978.3,5.71922332]
[1772463521820,9.28871398,1979.7,1978.2,5.56235541]
[1772463521821,3.35230137,1979.7,1978.6,5.71922332]
[1772463521986,3.35230137,1979.7,1978.7,1.509]
[1772463522181,3.35229668,1979.7,1978.7,1.509]
[1772463522386,3.35229668,1979.7,1978.8,1.26339195]
[1772463523492,11.3611741,1979.5,1978.2,1.26377514]
[1772463523797,11.3611741,1979.5,1978.2,6.98299846]
[1772463524002,6.0311741,1979.3,1978.2,6.98299846]
[1772463524536,7.9441741,1979.6,1978.2,6.98299846]
[1772463525220,6.0311741,1979.6,1978.5,5.71922332]
[1772463525399,5.26529668,1979.7,1978.6,7.22822332]
[1772463525810,3.35229668,1979.7,1978.6,7.22822332]
[1772463526034,11.29647078,1979.7,1978.6,7.22822332]
[1772463526696,11.29747078,1979.7,1978.7,1.2634558]
[1772463527103,0.002,1979.6,1978.7,1.2634558]
[1772463528099,5.8640212,1979.6,1978.7,1.2634558]
[1772463528620,5.8620212,1979.5,1978.7,1.2634558]
[1772463528819,7.12501385,1979.5,1978.7,1.2634558]
[1772463529208,1.914,1979.4,1978.7,1.2634558]
[1772463530114,7.12497129,1979.5,1978.7,1.2634558]
[1772463530317,5.8620212,1979.5,1978.7,1.2634558]
[1772463530516,9.03897981,1979.5,1978.7,1.2634558]
[1772463530821,0.002,1979.6,1978.7,1.2634558]
[1772463531115,1.914,1979.5,1978.7,1.2634558]
[1772463532052,7.245,1979.6,1978.7,1.2634558]
[1772463532374,13.1070212,1979.6,1978.7,1.2634558]
[1772463532950,1.26294518,1979.5,1978.7,1.2634558]
[1772463533155,16.24566033,1979.6,1978.7,1.2634558]
[1772463533156,0.002,1979.6,1978.7,1.2634558]
[1772463533326,1.913,1979.5,1978.7,6.67000781]
[1772463533930,1.913,1979.5,1978.7,1.2634558]
[1772463534821,7.243,1979.5,1978.7,1.2634558]
[1772463535021,8.50600233,1979.5,1978.7,1.2634558]
[1772463535249,5.8620212,1979.4,1978.7,1.2634558]
[1772463535622,0.002,1979.6,1978.7,1.2634558]
[1772463535922,1.914,1979.6,1978.7,1.2634558]
[1772463536120,3.17688149,1979.6,1978.7,1.2634558]
[1772463536322,5.8620212,1979.5,1978.7,1.2634558]
[1772463536534,5.8620212,1979.5,1978.5,1.26452848]
[1772463536535,11.1920212,1979.4,1978.5,1.26452848]
[1772463536733,5.8620212,1979.3,1978.5,1.26452848]
[1772463537143,1.26313662,1979.2,1978.5,0.001]
[1772463537532,7.12514508,1979.3,1978.5,0.001]
[1772463538655,1.912,1979.2,1978.5,0.001]
[1772463538861,5.27325374,1979.3,1978.5,5.40755201]
[1772463539062,0.002,1979.6,1979.2,1.26313662]
[1772463539365,0.00153886,1980.0,1979.2,6.66968863]
[1772463540837,0.00153886,1980.0,1979.2,9.4602689]
[1772463541067,0.00153886,1980.0,1979.2,6.66968863]
[1772463541284,0.00153886,1980.0,1979.2,1.26313662]
[1772463541435,5.86356006,1980.0,1979.2,1.26313662]
[1772463542948,7.77256006,1980.0,1979.2,1.26313662]
[1772463543145,9.03519915,1980.0,1979.1,5.05254648]
[1772463544659,9.03520738,1980.0,1979.1,5.05254648]
[1772463544839,0.002,1979.9,1979.1,5.05254648]
[1772463545765,0.002,1979.9,1979.2,5.40655201]
[1772463546561,5.0,1979.6,1979.2,5.40655201]
[1772463547065,5.0,1979.6,1979.1,5.05254648]
[1772463547251,5.0,1979.6,1979.0,6.66975245]
[1772463547936,6.26290066,1979.6,1979.0,1.26320044]
[1772463548135,12.12491427,1979.6,1979.0,1.26320044]
[1772463548383,12.1249089,1979.6,1979.0,1.26320044]
[1772463548610,10.8620212,1979.6,1979.0,1.26320044]
[1772463548872,12.12491147,1979.6,1979.0,1.26320044]
[1772463549606,1.98670678,1979.4,1978.8,0.001]
[1772463549758,1.98670678,1979.4,1978.4,0.001]
[1772463549759,5.8620212,1979.2,1978.4,1.26463798]
[1772463550080,1.909,1979.1,1978.4,1.26463798]
[1772463550569,7.7710212,1979.1,1978.4,1.26464182]
[1772463550746,7.7710212,1979.1,1978.4,1.2646326]
[1772463551263,5.8620212,1979.0,1978.4,0.001]
[1772463551445,7.12531855,1979.0,1978.4,0.001]
[1772463551643,7.12528832,1979.0,1978.4,0.001]
[1772463552045,9.03428832,1979.0,1978.4,0.001]
[1772463552571,7.7720212,1979.0,1978.4,0.001]
[1772463552744,5.8620212,1979.0,1978.4,0.001]
[1772463553073,7.12530036,1979.0,1978.4,0.001]
[1772463553746,6.59311233,1979.3,1978.4,0.001]
[1772463553947,5.41497729,1979.2,1978.4,0.001]
[1772463555483,5.05187484,1979.5,1978.4,0.001]
[1772463555655,5.05187484,1979.5,1978.4,1.26464739]
[1772463556378,5.41497729,1979.4,1978.4,1.26464739]
[1772463557244,11.59294518,1979.6,1978.4,1.26464739]
[1772463557245,6.26290824,1979.6,1978.5,5.54154021]
[1772463557492,5.41724042,1979.5,1978.5,0.001]
[1772463557694,5.41724042,1979.3,1978.5,0.001]
[1772463557855,7.4039472,1979.1,1978.5,0.001]
[1772463558254,7.4039472,1979.1,1978.2,0.001]
[1772463558255,5.41724042,1979.0,1978.2,0.001]
[1772463558558,5.41724042,1979.0,1978.0,0.00153886]
[1772463558559,5.41724042,1978.7,1978.0,0.00153886]
[1772463558795,5.41724042,1978.6,1978.0,0.00153886]
[1772463559750,1.26358352,1978.5,1978.0,0.00153886]
[1772463560353,6.68082394,1978.5,1977.5,0.001]
[1772463561079,5.41724042,1978.4,1977.5,0.001]
[1772463562379,6.68088781,1978.4,1978.3,0.001]
[1772463562586,6.68088781,1978.4,1977.5,0.001]
[1772463564377,5.33,1978.3,1977.5,0.001]
[1772463564910,6.68088781,1978.4,1977.5,5.37821044]
[1772463564911,1.26364739,1978.4,1977.5,5.37821044]
[1772463566201,5.41724042,1978.3,1977.5,0.001]
[1772463566501,7.4039472,1978.6,1977.5,6.64243294]
[1772463566686,1.26357221,1978.6,1977.6,5.37721044]
[1772463566862,6.59357221,1978.6,1977.6,5.37721044]
[1772463567062,12.01081263,1978.6,1977.6,5.37721044]
[1772463567897,5.41724042,1978.5,1977.5,1.2652225]
[1772463568070,10.74724042,1978.5,1977.5,1.2652225]
[1772463568270,10.74724042,1978.4,1977.5,1.2652225]
[1772463568504,10.74724042,1978.4,1977.4,5.05789001]
[1772463568505,1.26396683,1977.9,1977.4,0.001]
[1772463568686,1.26394348,1978.0,1977.4,0.001]
[1772463569001,1.26380579,1978.2,1977.4,0.001]
[1772463569296,1.26380579,1978.2,1977.4,5.37821044]
[1772463569703,1.26380579,1978.2,1977.4,0.001]
[1772463569999,6.68104621,1978.2,1977.4,0.001]
[1772463571196,12.01104621,1978.2,1977.4,0.001]
[1772463571805,1.26364919,1978.4,1977.4,5.37821044]
[1772463571984,5.33,1978.3,1977.4,5.37821044]
[1772463572183,7.31670678,1978.3,1977.4,0.001]
[1772463572385,10.74724042,1978.1,1977.4,0.001]
[1772463572684,1.26396683,1977.9,1977.4,0.001]
[1772463573111,7.4039472,1977.8,1977.2,0.001]
[1772463573730,5.41724042,1977.8,1977.2,0.001]
[1772463574489,5.33,1977.7,1977.2,0.001]
[1772463575093,5.41724042,1978.4,1977.2,5.37821044]
[1772463575492,1.91653886,1979.0,1977.4,5.37721044]
[1772463575493,5.41724042,1978.8,1977.4,5.37721044]
[1772463575913,5.41724042,1978.8,1977.5,0.001]
[1772463576086,10.74724042,1978.6,1977.5,0.001]
[1772463576288,0.002,1978.4,1977.5,0.001]
[1772463576519,0.002,1978.4,1977.5,5.37821044]
[1772463577099,0.00153886,1979.0,1978.0,5.37721044]
[1772463577100,5.33153886,1979.0,1978.0,5.37721044]
[1772463577316,0.002,1978.7,1978.0,5.37721044]
[1772463578126,0.00153886,1979.0,1978.5,5.37721044]
[1772463578510,5.0,1979.6,1979.0,5.37721044]
[1772463579094,0.002,1979.8,1979.0,5.37721044]
[1772463579521,0.002,1979.9,1979.3,5.37721044]
[1772463581319,0.002,1979.9,1978.3,5.37721044]
[1772463581629,0.002,1979.9,1978.5,5.37721044]
[1772463581796,0.002,1979.9,1978.6,5.37721044]
[1772463582922,1.98670678,1979.8,1978.6,5.37721044]
[1772463583235,0.002,1979.9,1978.6,5.37721044]
[1772463584324,5.41924042,1979.9,1978.6,5.37721044]
[1772463584489,1.98670678,1979.2,1978.6,5.08389102]
[1772463584698,1.98670678,1979.2,1978.0,5.3787493]
[1772463584699,5.41724042,1979.2,1978.0,5.3787493]
[1772463584956,5.41724042,1979.6,1978.0,5.3787493]
[1772463585227,5.41724042,1979.1,1978.0,5.3787493]
[1772463585390,5.41724042,1979.1,1978.0,0.00153886]
[1772463586291,5.41724042,1979.5,1978.2,5.37721044]
[1772463587719,5.41724042,1979.5,1978.1,1.98670678]
[1772463587720,5.26631415,1979.7,1978.5,4.99091093]
[1772463590855,2.57909379,1979.9,1978.8,4.99091093]
[1772463590856,0.002,1979.4,1978.8,4.99091093]
[1772463591155,0.002,1979.5,1979.0,4.99091093]
[1772463591335,0.002,1979.9,1979.0,4.99091093]
[1772463591744,0.002,1979.9,1979.2,1.98670678]
[1772463591951,0.002,1979.7,1979.3,4.99091093]
[1772463594154,0.002,1979.9,1979.3,4.99091093]
[1772463594856,0.002,1979.9,1979.0,4.99091093]
[1772463596124,0.002,1980.1,1979.6,4.99091093]
[1772463596359,5.26631415,1980.9,1979.6,4.99091093]
[1772463596562,0.00153886,1981.0,1979.9,4.99091093]
[1772463596860,0.00153886,1981.0,1980.2,4.99091093]
[1772463597444,0.00153886,1981.0,1980.4,4.99091093]
[1772463600376,0.00153886,1981.0,1979.2,4.99091093]
[1772463600377,7.25302093,1980.8,1979.2,4.99091093]
[1772463600573,5.26631415,1980.9,1979.7,4.99091093]
[1772463600935,0.00153886,1981.0,1979.9,4.99091093]
[1772463602045,5.26785301,1981.0,1979.2,4.99091093]
[1772463602251,5.26785301,1981.0,1979.6,4.99091093]
[1772463602448,5.26631415,1980.7,1979.6,4.99091093]
[1772463602685,7.25302093,1980.8,1979.6,4.99091093]
[1772463602857,1.98670678,1979.9,1979.0,0.00153886]
[1772463603165,3.97341356,1980.3,1979.1,4.99091093]
[1772463603166,5.26631415,1980.3,1979.1,4.99091093]
[1772463603366,0.00153886,1981.0,1979.2,4.99091093]
[1772463603678,0.00153886,1981.0,1979.4,4.99091093]
[1772463604281,0.00153886,1981.0,1979.0,5.05434063]
[1772463604282,5.26785301,1981.0,1979.6,4.99091093]
[1772463604883,5.26831415,1980.9,1979.6,4.99091093]
[1772463605083,0.002,1980.9,1979.6,4.99091093]
[1772463605382,0.002,1980.9,1979.9,4.99091093]
[1772463607357,5.26631415,1981.8,1980.4,4.99091093]
[1772463607553,0.75978638,1981.9,1980.4,4.99091093]
[1772463607990,6.02610053,1981.9,1980.6,4.99091093]
[1772463608281,6.02610053,1981.9,1980.0,1.26262626]
[1772463608282,5.26631415,1981.4,1980.2,4.99091093]
[1772463608482,5.26631415,1981.4,1980.0,0.00153886]
[1772463608685,5.41579914,1981.1,1980.0,0.00153886]
[1772463609263,5.33,1981.0,1980.0,0.00153886]
[1772463609494,5.26631415,1980.9,1980.0,0.00153886]
[1772463610500,5.26631415,1980.8,1979.1,4.99091093]
[1772463610867,5.26631415,1980.7,1979.1,4.99091093]
[1772463611066,5.26631415,1980.7,1979.0,4.99244979]
[1772463611299,5.26631415,1980.7,1979.2,4.99091093]
[1772463611468,5.26631415,1980.7,1979.0,0.00153886]
[1772463611667,5.26631415,1980.7,1979.0,4.99244979]
[1772463612094,5.26631415,1980.7,1979.1,4.99091093]